bitfinex/quotes_SOLUSD_20251216
["timestamp","ask_amount","ask_price","bid_price","bid_amount"]
[1765906360176,0.67,127.82,127.79,8.58]
[1765906360365,11.33342214,127.82,127.79,8.58]
[1765906360859,11.33342214,127.81,127.78,8.58]
[1765906361072,11.33342214,127.81,127.78,9.28]
[1765906361478,11.33342214,127.82,127.79,0.7]
[1765906361664,19.15719535,127.82,127.78,9.28]
[1765906361860,8.49377321,127.82,127.78,9.28]
[1765906362064,19.15719535,127.82,127.78,9.28]
[1765906362272,19.15719535,127.82,127.78,8.58]
[1765906362273,11.33342214,127.81,127.78,8.58]
[1765906362695,0.67,127.79,127.77,8.58]
[1765906363578,7.82533844,127.79,127.77,8.58]
[1765906363761,19.15876058,127.79,127.75,0.7]
[1765906363966,19.15876058,127.79,127.75,9.28]
[1765906364176,19.15876058,127.79,127.76,0.7]
[1765906364982,19.15876058,127.79,127.75,9.28]
[1765906364983,7.82533844,127.79,127.75,9.28]
[1765906365286,19.15876058,127.79,127.76,0.7]
[1765906367188,19.15876058,127.79,127.76,9.28]
[1765906368080,19.15876058,127.79,127.76,8.58]
[1765906368081,18.48876058,127.79,127.76,8.58]
[1765906368282,11.33342214,127.78,127.75,8.58]
[1765906368457,0.67,127.78,127.75,8.58]
[1765906368656,10.66342214,127.77,127.75,8.58]
[1765906368860,11.33342214,127.78,127.75,9.28]
[1765906369387,11.33342214,127.78,127.75,8.58]
[1765906369892,11.33342214,127.78,127.75,9.28]
[1765906369893,19.15987147,127.78,127.75,9.28]
[1765906370463,7.82533844,127.79,127.76,0.7]
[1765906370786,28.14104533,127.81,127.76,0.7]
[1765906370787,10.66342214,127.8,127.76,0.7]
[1765906371288,30.22446747,127.81,127.77,0.7]
[1765906371494,30.89446747,127.81,127.77,0.7]
[1765906371665,7.82476895,127.8,127.77,0.7]
[1765906371861,11.33342214,127.79,127.75,9.28]
[1765906372203,11.33342214,127.79,127.76,0.7]
[1765906373005,27.38658428,127.8,127.74,0.7]
[1765906373006,11.33342214,127.77,127.74,0.7]
[1765906373163,10.66342214,127.77,127.75,8.58]
[1765906373367,11.33342214,127.77,127.75,8.58]
[1765906373791,19.16054121,127.77,127.74,8.58]
[1765906374378,19.16054121,127.77,127.74,9.28]
[1765906374590,10.66342214,127.76,127.72,9.50994492]
[1765906374776,11.33342214,127.73,127.69,0.7]
[1765906374980,10.66342214,127.73,127.7,9.50994492]
[1765906375403,11.33342214,127.72,127.69,9.28]
[1765906375578,11.10767296,127.74,127.7,0.7]
[1765906375902,11.10767296,127.74,127.69,9.28]
[1765906375903,19.16295699,127.73,127.69,9.28]
[1765906376106,18.49295699,127.73,127.69,9.28]
[1765906376437,19.16295699,127.73,127.69,9.28]
[1765906377397,19.16295699,127.73,127.69,0.7]
[1765906377603,19.16295699,127.73,127.69,9.28]
[1765906377895,7.82953485,127.73,127.7,9.50994492]
[1765906378104,19.16211054,127.74,127.7,9.50994492]
[1765906378695,18.49211054,127.74,127.7,9.50994492]
[1765906378920,18.49211054,127.74,127.71,0.7]
[1765906379219,7.8286884,127.74,127.71,0.7]
[1765906379570,7.82806635,127.75,127.72,8.58]
[1765906379970,7.82806635,127.75,127.72,9.28]
[1765906380919,38.73096011,127.75,127.72,8.58]
[1765906381219,38.73096011,127.75,127.72,9.28]
[1765906381402,19.16148849,127.75,127.72,9.28]
[1765906382030,38.73096011,127.75,127.72,9.28]
[1765906382401,38.73096011,127.75,127.72,8.58]
[1765906382608,38.73096011,127.75,127.72,9.28]
[1765906383123,19.16148849,127.75,127.72,9.28]
[1765906383540,18.49148849,127.75,127.72,9.28]
[1765906383837,38.75096011,127.75,127.72,9.28]
[1765906384131,38.75096011,127.75,127.72,8.58]
[1765906384337,38.06096011,127.75,127.72,8.58]
[1765906384509,0.69,127.72,127.68,27.54932236]
[1765906384700,11.35342214,127.72,127.68,17.1116494]
[1765906385006,11.35342214,127.72,127.68,9.28]
[1765906385207,0.69,127.69,127.66,0.7]
[1765906385408,10.66342214,127.7,127.67,9.28]
[1765906385928,11.35342214,127.7,127.67,8.58]
[1765906386096,0.69,127.68,127.66,8.58]
[1765906386298,10.66342214,127.69,127.66,8.58]
[1765906386493,11.35342214,127.69,127.66,8.58]
[1765906386699,0.69,127.69,127.66,9.28]
[1765906386895,11.35342214,127.69,127.66,9.28]
[1765906387215,19.18526263,127.69,127.66,9.28]
[1765906387834,7.83184049,127.69,127.66,8.58]
[1765906388132,8.52184049,127.69,127.66,9.28]
[1765906388324,7.83184049,127.69,127.66,9.28]
[1765906388538,19.18526263,127.69,127.66,8.58]
[1765906389932,18.49526263,127.69,127.66,8.58]
[1765906390104,19.18608406,127.68,127.64,0.7]
[1765906390308,19.18608406,127.68,127.64,27.77786234]
[1765906391503,38.07628456,127.68,127.64,8.58]
[1765906391833,0.69,127.66,127.64,8.58]
[1765906392010,11.35342214,127.67,127.64,9.28]
[1765906392540,11.35342214,127.66,127.64,8.58]
[1765906393233,10.66342214,127.66,127.64,8.58]
[1765906393405,7.83453462,127.64,127.63,0.1]
[1765906393900,39.15906425,127.69,127.63,0.1]
[1765906394106,0.69,127.64,127.63,0.1]
[1765906394310,11.35342214,127.64,127.63,0.1]
[1765906395442,19.18795676,127.64,127.63,0.1]
[1765906396031,19.21677005,127.64,127.63,0.1]
[1765906396748,0.69,127.61,127.6,0.1]
[1765906396955,11.12767296,127.61,127.6,0.1]
[1765906397313,11.38223543,127.61,127.6,0.1]
[1765906397529,7.83637645,127.61,127.6,0.1]
[1765906397727,10.69223543,127.62,127.6,0.1]
[1765906397924,7.83605411,127.62,127.6,0.8]
[1765906399243,27.42450358,127.63,127.6,0.8]
[1765906399541,28.11450358,127.63,127.6,0.1]
[1765906399726,27.42450358,127.63,127.6,0.8]
[1765906401342,28.11450358,127.63,127.6,0.8]
[1765906401543,7.83440516,127.65,127.62,3.83801693]
[1765906401744,7.83344233,127.66,127.63,3.83801693]
[1765906402036,7.83344233,127.66,127.63,4.53801693]
[1765906402242,7.83344233,127.66,127.64,0.7]
[1765906402643,7.83344233,127.66,127.63,4.53801693]
[1765906403216,4.52801693,127.68,127.64,0.7]
[1765906403420,12.36009713,127.68,127.64,0.7]
[1765906403647,7.8320802,127.68,127.66,0.7]
[1765906403822,4.52801693,127.7,127.66,0.7]
[1765906405044,0.69,127.68,127.64,13.11801693]
[1765906405247,0.69,127.68,127.65,0.7]
[1765906405551,4.52801693,127.68,127.65,0.7]
[1765906405715,27.41013391,127.69,127.65,0.7]
[1765906405716,31.93815084,127.69,127.65,0.7]
[1765906406468,0.69,127.68,127.65,4.53801693]
[1765906406742,0.69,127.67,127.64,8.58]
[1765906407041,7.83330722,127.66,127.64,8.58]
[1765906407246,7.83296967,127.67,127.64,9.28]
[1765906408434,7.83296967,127.67,127.65,0.7]
[1765906409632,7.83296967,127.67,127.64,9.28]
[1765906412242,7.83296967,127.67,127.64,8.58]
[1765906412444,7.83296967,127.67,127.64,9.28]
[1765906412654,0.69,127.65,127.62,9.28]
[1765906413328,31.94272075,127.67,127.63,0.7]
[1765906413529,0.69,127.66,127.63,0.7]
[1765906413744,0.69,127.66,127.62,9.25]
[1765906413935,4.52801693,127.66,127.62,9.25]
[1765906414147,4.49801693,127.65,127.62,8.58]
[1765906414339,0.66,127.65,127.62,8.58]
[1765906414527,7.83453462,127.64,127.62,8.58]
[1765906414848,7.83453462,127.64,127.61,9.25]
[1765906415228,0.66,127.62,127.6,0.1]
[1765906415628,3.11661151,127.63,127.6,0.1]
[1765906415825,2.45661151,127.62,127.6,0.1]
[1765906416053,3.11661151,127.62,127.6,0.1]
[1765906416568,7.8363332,127.62,127.61,0.67]
[1765906416740,7.8363332,127.62,127.6,0.1]
[1765906416940,7.8363332,127.62,127.6,0.77]
[1765906417972,7.83514847,127.63,127.6,0.77]
[1765906418672,7.83514847,127.63,127.61,0.67]
[1765906419986,2.45661151,127.65,127.61,0.67]
[1765906420265,7.83473671,127.64,127.61,0.67]
[1765906420454,10.95134822,127.64,127.61,0.67]
[1765906420647,30.53768479,127.64,127.61,0.67]
[1765906420865,3.11661151,127.63,127.6,0.1]
[1765906421072,2.45661151,127.63,127.6,0.77]
[1765906421255,30.53768479,127.64,127.6,0.77]
[1765906421968,19.58633657,127.64,127.6,7.93696738]
[1765906422143,22.04294808,127.64,127.61,0.67]
[1765906422339,7.83392087,127.65,127.61,0.67]
[1765906422551,10.29053238,127.65,127.61,0.67]
[1765906423376,7.83392087,127.65,127.63,0.67]
[1765906423545,7.83351896,127.66,127.63,0.67]
[1765906424160,7.83351896,127.66,127.64,0.67]
[1765906426274,10.28930517,127.67,127.64,0.67]
[1765906426477,10.94930517,127.67,127.64,0.67]
[1765906426774,7.83269366,127.67,127.64,0.67]
[1765906426980,7.83269366,127.67,127.65,0.67]
[1765906427275,7.83269366,127.67,127.65,9.25]
[1765906427653,28.15809527,127.7,127.65,9.25]
[1765906427654,22.69470678,127.7,127.66,0.67]
[1765906427969,7.8304822,127.71,127.68,0.67]
[1765906428169,7.8304822,127.71,127.69,0.67]
[1765906428553,7.8304822,127.71,127.68,17.08201677]
[1765906428860,7.8304822,127.71,127.68,9.25]
[1765906429065,10.94709371,127.71,127.68,8.58]
[1765906429266,3.11661151,127.7,127.68,8.58]
[1765906430168,10.94767207,127.7,127.68,8.58]
[1765906430475,10.28767207,127.7,127.68,8.58]
[1765906430678,7.83106056,127.7,127.68,8.58]
[1765906431049,7.83106056,127.7,127.67,0.67]
[1765906431675,7.83106056,127.7,127.67,9.25]
[1765906432769,2.45661151,127.72,127.68,0.67]
[1765906433163,10.28581152,127.73,127.69,0.67]
[1765906433369,7.82802821,127.75,127.71,0.67]
[1765906433673,7.82717595,127.76,127.72,0.67]
[1765906433878,8.02677808,127.77,127.74,0.67]
[1765906434177,8.68677808,127.77,127.74,0.67]
[1765906434879,8.02677808,127.77,127.74,0.67]
[1765906435079,0.2,127.77,127.75,0.67]
[1765906435452,0.2,127.77,127.76,0.67]
[1765906436079,0.2,127.77,127.75,8.80994492]
[1765906436260,0.2,127.77,127.74,0.67]
[1765906436470,0.66,127.76,127.72,17.30934011]
[1765906436683,3.11661151,127.75,127.73,8.58]
[1765906437778,2.45661151,127.75,127.73,8.58]
[1765906438082,3.11661151,127.76,127.73,8.58]
[1765906438471,7.82778864,127.75,127.73,8.58]
[1765906438667,8.48778864,127.75,127.73,8.58]
[1765906439054,7.82778864,127.75,127.73,8.58]
[1765906439981,7.82778864,127.75,127.73,9.25]
[1765906440360,7.82778864,127.75,127.73,0.67]
[1765906441281,20.42640839,127.77,127.75,0.67]
[1765906441282,0.2,127.77,127.75,0.67]
[1765906441581,0.2,127.77,127.76,0.67]
[1765906443090,0.2,127.77,127.75,9.25]
[1765906443382,0.2,127.77,127.76,0.67]
[1765906444080,0.2,127.77,127.75,17.11749411]
[1765906444253,0.2,127.77,127.76,0.71]
[1765906448184,0.2,127.77,127.76,23.91424101]
[1765906448488,0.2,127.77,127.76,17.34712087]
[1765906448989,0.2,127.77,127.76,23.91424101]
[1765906449859,8.71664541,127.77,127.73,0.71]
[1765906450186,8.71664541,127.77,127.73,16.40867816]
[1765906450389,8.71664541,127.77,127.74,0.71]
[1765906450886,6.56712014,127.76,127.73,8.58]
[1765906451060,28.2830538,127.77,127.73,8.58]
[1765906451261,34.85017394,127.77,127.73,8.58]
[1765906451862,6.56712014,127.76,127.73,8.58]
[1765906452072,7.25712014,127.76,127.73,8.58]
[1765906452588,0.69,127.74,127.73,8.58]
[1765906452888,0.69,127.74,127.71,8.58]
[1765906452889,0.69,127.73,127.71,8.58]
[1765906453068,0.69,127.73,127.68,17.12184934]
[1765906453069,6.56712014,127.73,127.68,17.12184934]
[1765906453268,7.25712014,127.72,127.69,0.71]
[1765906453489,0.69,127.71,127.68,16.41184934]
[1765906453661,7.25712014,127.72,127.68,17.12184934]
[1765906453993,15.08703095,127.72,127.68,17.12184934]
[1765906454186,49.77048974,127.77,127.7,0.71]
[1765906454366,14.39429609,127.76,127.72,0.71]
[1765906454566,0.69,127.75,127.72,0.71]
[1765906454966,15.08429609,127.76,127.72,0.71]
[1765906455161,0.69,127.75,127.72,0.71]
[1765906455902,7.25712014,127.75,127.72,0.71]
[1765906456200,15.08526709,127.75,127.72,0.71]
[1765906457301,7.82814695,127.75,127.72,8.53940792]
[1765906457497,7.82814695,127.75,127.72,0.71]
[1765906458000,14.39458194,127.76,127.72,7.8295933]
[1765906458195,7.8274618,127.76,127.73,0.71]
[1765906458701,14.39458194,127.76,127.73,0.71]
[1765906458904,15.08458194,127.76,127.73,0.71]
[1765906459496,10.96887644,127.76,127.73,0.71]
[1765906461106,10.27887644,127.76,127.73,0.71]
[1765906461310,7.8274618,127.76,127.73,0.71]
[1765906462409,7.8274618,127.76,127.73,8.53889054]
[1765906464095,8.5174618,127.76,127.73,0.71]
[1765906464272,7.8274618,127.76,127.73,0.71]
[1765906469404,29.84659731,127.76,127.72,8.80994492]
[1765906469704,0.69,127.74,127.71,16.40984962]
[1765906470010,0.69,127.74,127.71,17.11984962]
[1765906470181,7.82847688,127.74,127.71,17.11984962]
[1765906470380,10.96928046,127.75,127.71,17.11984962]
[1765906470577,10.96928046,127.75,127.71,16.40984962]
[1765906470789,10.96928046,127.75,127.72,0.71]
[1765906474021,10.96928046,127.75,127.71,16.11487573]
[1765906475312,29.84631146,127.76,127.71,18.56607136]
[1765906475511,8.0268599,127.77,127.72,11.26114055]
[1765906475805,11.19805553,127.77,127.72,11.26114055]
[1765906476008,2.45119563,127.75,127.71,16.11487573]
[1765906476192,3.17119563,127.75,127.71,16.79487573]
[1765906476691,0.72,127.74,127.71,16.79487573]
[1765906476908,3.17119563,127.75,127.71,16.79487573]
[1765906477112,8.54840144,127.74,127.71,16.79487573]
[1765906477308,0.72,127.73,127.7,17.32050999]
[1765906477625,0.72,127.73,127.71,8.58]
[1765906478512,8.54917487,127.73,127.71,8.58]
[1765906478721,0.72,127.72,127.71,8.58]
[1765906479583,12.38085738,127.73,127.71,8.58]
[1765906480312,19.56902569,127.76,127.72,0.68]
[1765906480518,4.55168251,127.75,127.71,8.58]
[1765906480706,0.72,127.74,127.71,17.09020744]
[1765906480912,12.37976484,127.75,127.71,17.09020744]
[1765906481090,8.54808233,127.75,127.71,16.41020744]
[1765906481298,8.54808233,127.75,127.72,0.68]
[1765906485115,7.82808233,127.75,127.72,7.82950027]
[1765906485419,7.82717595,127.76,127.73,0.68]
[1765906485790,8.54717595,127.76,127.73,0.68]
[1765906489037,0.72,127.75,127.72,8.50950027]
[1765906489313,12.37885846,127.76,127.73,0.68]
[1765906489811,8.54717595,127.76,127.73,0.68]
[1765906490203,7.82717595,127.76,127.74,0.68]
[1765906491194,8.54717595,127.76,127.73,8.50897568]
[1765906491417,8.54717595,127.76,127.73,0.68]
[1765906492321,8.54717595,127.76,127.73,4.51168251]
[1765906492501,8.0268628,127.77,127.74,0.68]
[1765906492914,8.7468628,127.77,127.74,0.68]
[1765906493422,8.7468628,127.77,127.73,12.3404029]
[1765906493912,8.7468628,127.77,127.74,0.68]
[1765906494543,0.72,127.76,127.73,12.3404029]
[1765906495436,8.0268628,127.77,127.74,0.68]
[1765906495631,8.0268628,127.77,127.74,9.26]
[1765906495938,8.7468628,127.77,127.74,9.26]
[1765906499132,8.7468628,127.77,127.74,13.09168251]
[1765906500038,0.2,127.77,127.75,3.83168251]
[1765906500209,0.2,127.77,127.75,4.51168251]
[1765906500415,0.2,127.77,127.76,0.68]
[1765906501225,0.2,127.77,127.76,13.32162743]
[1765906501735,0.2,127.77,127.76,21.14880338]
[1765906503340,0.2,127.77,127.76,8.58]
[1765906505951,0.2,127.77,127.76,29.71880338]
[1765906506446,8.52316732,127.83,127.77,8.80994492]
[1765906506638,8.52316732,127.83,127.8,4.50168251]
[1765906506824,8.52316732,127.83,127.8,13.08168251]
[1765906507340,0.7,127.82,127.78,4.50168251]
[1765906507521,3.83168251,127.82,127.79,8.58]
[1765906507726,0.7,127.81,127.79,8.58]
[1765906509951,8.52227784,127.84,127.8,12.32640341]
[1765906510124,0.7,127.83,127.8,4.50168251]
[1765906510330,0.7,127.83,127.8,0.67]
[1765906511054,0.7,127.83,127.79,20.90671937]
[1765906511226,0.7,127.82,127.8,8.58]
[1765906511425,0.7,127.81,127.8,8.58]
[1765906511635,0.7,127.8,127.77,16.63619197]
[1765906511849,0.7,127.8,127.77,25.21619197]
[1765906512444,8.52475686,127.8,127.77,25.21619197]
[1765906512750,0.7,127.79,127.77,8.58]
[1765906515457,8.52475686,127.8,127.77,16.40651962]
[1765906515752,8.52475686,127.8,127.77,17.07651962]
[1765906516052,7.82475686,127.8,127.77,16.40651962]
[1765906516267,7.82475686,127.8,127.77,17.07651962]
[1765906516753,8.52475686,127.8,127.77,17.07651962]
[1765906517465,7.82475686,127.8,127.77,17.07651962]
[1765906517652,8.52475686,127.8,127.77,17.07651962]
[1765906517858,8.52439841,127.81,127.78,0.67]
[1765906519092,0.7,127.81,127.78,8.49593123]
[1765906519255,8.52378502,127.82,127.79,8.58]
[1765906519568,0.7,127.81,127.79,8.58]
[1765906520757,11.65546753,127.82,127.79,8.58]
[1765906520963,0.7,127.82,127.79,17.07515042]
[1765906521170,8.52227784,127.84,127.81,0.67]
[1765906521450,7.82227784,127.84,127.8,3.83168251]
[1765906521654,0.7,127.86,127.82,4.50168251]
[1765906521856,0.7,127.86,127.83,9.25]
[1765906522153,0.7,127.86,127.83,8.58]
[1765906522663,0.2,127.88,127.84,3.83168251]
[1765906522873,0.7,127.87,127.84,4.50168251]
[1765906523066,0.7,127.87,127.84,0.67]
[1765906523463,0.9,127.88,127.85,0.67]
[1765906523665,0.9,127.88,127.86,8.58]
[1765906524250,8.71984068,127.88,127.86,8.58]
[1765906524963,0.9,127.88,127.86,8.58]
[1765906525275,0.2,127.88,127.86,17.07065656]
[1765906525460,0.2,127.88,127.86,20.90233907]
[1765906525660,0.2,127.88,127.87,4.50168251]
[1765906526648,0.2,127.88,127.87,12.32212514]
[1765906527070,0.2,127.88,127.87,21.13207006]
[1765906527266,0.2,127.88,127.87,17.30038755]
[1765906527472,0.2,127.88,127.87,21.13207006]
[1765906528956,0.2,127.88,127.87,29.71207006]
[1765906529578,0.2,127.88,127.87,16.63038755]
[1765906529760,0.2,127.88,127.87,25.21038755]
[1765906530079,0.2,127.88,127.87,25.88038755]
[1765906530461,0.2,127.88,127.87,25.21038755]
[1765906530988,0.2,127.88,127.87,17.38994492]
[1765906531195,0.7,127.87,127.85,8.58]
[1765906531487,0.7,127.86,127.85,8.58]
[1765906531700,3.83168251,127.86,127.82,16.63317543]
[1765906531989,27.56940881,127.88,127.83,17.07270497]
[1765906531990,0.7,127.87,127.83,17.07270497]
[1765906532167,4.53168251,127.87,127.83,17.07270497]
[1765906532367,0.7,127.87,127.83,17.07270497]
[1765906532880,0.7,127.87,127.83,20.90438748]
[1765906533060,0.7,127.86,127.83,20.90438748]
[1765906533260,0.7,127.86,127.83,17.07270497]
[1765906533685,3.83168251,127.86,127.82,8.80994492]
[1765906533896,0.7,127.84,127.83,8.58]
[1765906536371,8.52227784,127.84,127.83,8.58]
[1765906536788,0.72,127.83,127.81,8.58]
[1765906536988,7.82227784,127.84,127.78,8.80994492]
[1765906537202,18.963191,127.89,127.84,8.80994492]
[1765906537382,0.2,127.94,127.88,23.07930039]
[1765906537694,0.2,127.94,127.93,9.80994491]
[1765906537867,0.2,127.99,127.93,9.80994491]
[1765906537868,0.2,127.99,127.96,10.43767296]
[1765906538071,0.92,127.99,127.97,23.63507328]
[1765906538288,0.72,127.98,127.97,19.83231452]
[1765906538797,0.72,127.98,127.92,10.43767296]
[1765906539005,0.72,127.98,127.95,2.4423696]
[1765906539298,0.72,127.98,127.93,19.83231452]
[1765906539500,0.72,127.97,127.94,6.54396622]
[1765906539669,0.72,127.97,127.93,25.20652946]
[1765906539872,0.72,127.97,127.95,6.54396622]
[1765906540467,0.72,127.97,127.93,25.20652946]
[1765906540468,0.72,127.97,127.96,15.12396622]
[1765906540673,0.72,127.98,127.96,15.12396622]
[1765906540892,0.2,127.99,127.97,6.54396622]
[1765906541073,0.2,127.99,127.96,8.58]
[1765906541074,0.72,127.98,127.96,8.58]
[1765906541626,0.72,127.97,127.93,8.80994492]
[1765906541909,6.54396622,127.97,127.91,8.80994492]
[1765906542097,0.72,127.94,127.89,6.54396622]
[1765906542398,0.72,127.94,127.91,8.58]
[1765906543801,0.72,127.93,127.91,8.58]
[1765906544382,0.72,127.93,127.89,6.54396622]
[1765906544578,0.72,127.93,127.88,8.80994492]
[1765906544579,0.72,127.93,127.88,23.93391114]
[1765906545098,0.72,127.92,127.88,15.12396622]
[1765906545404,0.72,127.92,127.88,16.39969169]
[1765906545710,8.53777278,127.92,127.88,22.94365791]
[1765906546006,0.72,127.91,127.88,22.94365791]
[1765906546210,0.72,127.91,127.88,15.12396622]
[1765906547818,0.72,127.91,127.89,6.54396622]
[1765906548607,0.72,127.9,127.89,6.54396622]
[1765906553408,0.72,127.9,127.88,16.37973467]
[1765906553713,0.72,127.9,127.89,6.54396622]
[1765906553909,0.72,127.9,127.88,8.56]
[1765906554113,0.72,127.9,127.88,15.10396622]
[1765906554707,0.72,127.9,127.88,22.9237353]
[1765906554914,0.72,127.9,127.89,6.54396622]
[1765906555709,10.43767296,127.94,127.89,14.36318586]
[1765906556011,0.72,127.94,127.92,6.54396622]
[1765906556185,0.72,127.94,127.92,15.10396622]
[1765906557987,0.72,127.95,127.93,6.54396622]
[1765906559611,0.72,127.95,127.92,11.00329087]
[1765906559810,0.72,127.95,127.92,18.82064386]
[1765906560111,0.72,127.94,127.92,18.82064386]
[1765906560289,0.72,127.95,127.93,2.44329087]
[1765906560497,0.72,127.97,127.94,2.44329087]
[1765906560793,0.72,127.97,127.95,8.56]
[1765906561532,0.72,127.97,127.95,11.00329087]
[1765906563319,0.72,127.97,127.95,8.56]
[1765906563613,0.72,127.97,127.95,11.00329087]
[1765906563812,0.71,127.96,127.92,2.44329087]
[1765906564014,0.71,127.96,127.92,10.26055016]
[1765906564192,0.71,127.96,127.93,2.44329087]
[1765906564902,0.69,127.95,127.93,2.44329087]
[1765906565420,0.69,127.95,127.93,6.5443528]
[1765906566816,7.81569929,127.95,127.93,6.5443528]
[1765906567003,0.69,127.94,127.93,6.5443528]
[1765906567514,0.69,127.95,127.93,6.5443528]
[1765906568500,8.50524197,127.96,127.93,6.5443528]
[1765906568699,0.69,127.95,127.93,6.5443528]
[1765906569126,0.69,127.95,127.91,25.18763731]
[1765906569321,0.69,127.95,127.89,25.1886063]
[1765906569499,0.69,127.95,127.9,6.5443528]
[1765906569500,0.69,127.94,127.9,6.5443528]
[1765906569704,0.69,127.94,127.89,8.56]
[1765906569910,0.69,127.9,127.85,30.03967331]
[1765906570225,6.5443528,127.86,127.8,14.36870498]
[1765906570421,0.69,127.84,127.8,8.56]
[1765906570599,0.69,127.84,127.81,6.5443528]
[1765906571013,0.69,127.84,127.82,6.5443528]
[1765906571296,0.69,127.84,127.81,6.5443528]
[1765906571714,0.69,127.84,127.8,8.56]
[1765906571902,0.69,127.83,127.8,8.56]
[1765906572109,0.69,127.83,127.78,15.1043528]
[1765906572110,7.82411391,127.81,127.78,15.1043528]
[1765906572629,0.69,127.8,127.79,6.5443528]
[1765906573304,8.51411391,127.81,127.79,6.5443528]
[1765906573524,7.82411391,127.81,127.79,6.5443528]
[1765906574034,8.51411391,127.81,127.79,6.5443528]
[1765906574247,0.69,127.8,127.78,8.56]
[1765906574537,0.69,127.8,127.78,16.38590952]
[1765906574705,0.69,127.8,127.78,15.1043528]
[1765906575138,0.69,127.8,127.78,22.93027771]
[1765906576025,7.82401163,127.82,127.78,22.93027771]
[1765906576218,0.69,127.84,127.81,6.5443528]
[1765906576424,0.69,127.84,127.82,6.5443528]
[1765906576932,0.69,127.84,127.81,6.5443528]
[1765906577537,7.82262223,127.84,127.79,16.63508065]
[1765906577728,0.69,127.81,127.78,8.58]
[1765906578041,0.69,127.81,127.78,15.1243528]
[1765906578714,0.69,127.83,127.8,6.5443528]
[1765906579116,0.69,127.83,127.79,6.5443528]
[1765906579313,0.69,127.83,127.79,14.36968121]
[1765906579519,0.69,127.83,127.8,6.5443528]
[1765906580247,8.51304722,127.83,127.8,6.5443528]
[1765906580415,7.82304722,127.83,127.8,6.5443528]
[1765906580617,8.51304722,127.83,127.8,6.5443528]
[1765906581141,0.69,127.83,127.8,6.5443528]
[1765906581840,7.82307927,127.83,127.8,6.5443528]
[1765906582136,0.69,127.82,127.79,6.5443528]
[1765906582439,0.69,127.8,127.78,8.58]
[1765906583245,7.82411391,127.81,127.78,15.1243528]
[1765906583442,0.69,127.8,127.78,22.95021326]
[1765906583832,0.69,127.8,127.78,15.1243528]
[1765906584554,8.51411391,127.81,127.79,6.5443528]
[1765906584845,7.82411391,127.81,127.79,6.5443528]
[1765906585031,0.69,127.8,127.79,6.5443528]
[1765906585233,0.69,127.8,127.78,15.1243528]
[1765906585854,0.69,127.8,127.78,22.94995024]
[1765906586951,0.69,127.8,127.78,15.1243528]
[1765906587668,0.69,127.8,127.76,17.58994492]
[1765906587669,7.82477337,127.8,127.76,17.58994492]
[1765906587825,3.13898333,127.77,127.76,0.2]
[1765906588026,0.69,127.76,127.7,7.83056337]
[1765906588244,0.69,127.74,127.7,18.8595467]
[1765906588452,0.69,127.74,127.71,2.44898333]
[1765906588750,0.69,127.78,127.73,2.44898333]
[1765906588955,7.82656335,127.77,127.75,2.44898333]
[1765906589139,8.51656335,127.77,127.75,2.44898333]
[1765906589553,8.51656335,127.77,127.75,6.56344921]
[1765906590257,0.69,127.76,127.75,6.56344921]
[1765906590458,8.51656335,127.77,127.74,6.56344921]
[1765906591175,0.69,127.74,127.73,8.58]
[1765906591460,8.51778864,127.75,127.73,8.58]
[1765906591642,7.82778864,127.75,127.73,8.58]
[1765906591842,8.51778864,127.75,127.73,8.58]